{"text_format":"1","workbook":"xlsx","n_sheets":4,"sheets":["Deklaracja","Załącznik nr 1","Objaśnienia","Baza ulic"],"not_rendered":{"charts":0,"images":2,"macros":1,"external_links":1,"defined_names":3,"comments":0,"pivot_tables":0},"unopened":[],"bounds":{"document_bytes":16777216,"sheet_cells":100000,"rows_first":2000,"rows_last":500,"rows_between":2000,"halvings":0,"cell_chars":16384,"cell_head_chars":4096},"cells_cut":0,"cells_raw":0,"read":"whole","date_system":"1900"}

{"sheet":"Deklaracja","index":0,"n_rows":93,"n_cols":14,"rows_kept":93,"cut":false,"hidden":false,"merged":[[72,2,72,4],[80,0,80,13],[10,1,10,9],[7,1,7,5],[44,6,44,13],[59,5,59,6],[60,5,60,6],[61,5,61,6],[62,5,62,6],[63,5,64,6],[74,0,74,13],[75,0,75,6],[75,7,75,13],[76,0,79,6],[76,7,79,13],[66,0,66,13],[71,0,71,13],[72,0,73,0],[73,2,73,13],[67,0,70,13],[63,0,64,4],[63,7,64,8],[72,5,72,13],[63,9,64,10],[65,0,65,6],[65,7,65,13],[61,0,61,4],[61,7,61,8],[61,9,61,10],[62,0,62,4],[62,7,62,8],[62,9,62,10],[61,12,61,13],[62,12,62,13],[63,12,64,13],[59,0,59,4],[59,7,59,8],[59,9,59,10],[60,0,60,4],[60,7,60,8],[60,9,60,10],[54,0,54,13],[55,0,55,13],[56,0,58,4],[56,5,58,6],[56,7,57,10],[56,12,58,13],[58,7,58,8],[58,9,58,10],[59,12,59,13],[60,12,60,13],[48,9,53,13],[49,0,49,4],[49,5,49,6],[49,7,49,8],[50,0,50,4],[50,5,50,6],[50,7,50,8],[44,0,44,5],[45,0,47,4],[45,5,46,8],[45,9,47,13],[47,5,47,6],[47,7,47,8],[51,0,51,4],[51,5,51,6],[51,7,51,8],[52,0,53,4],[52,5,53,6],[52,7,53,8],[48,0,48,4],[48,5,48,6],[48,7,48,8],[39,0,39,13],[40,0,41,4],[40,6,41,7],[40,9,41,13],[42,0,42,13],[43,0,43,13],[35,0,35,13],[36,0,36,13],[37,0,37,4],[37,5,37,7],[37,8,37,13],[38,0,38,4],[38,5,38,7],[38,8,38,13],[33,0,33,4],[33,5,33,7],[33,8,33,13],[34,0,34,4],[34,5,34,7],[34,8,34,13],[31,0,31,4],[31,5,31,7],[31,8,31,13],[32,0,32,4],[32,5,32,7],[32,8,32,13],[28,0,28,13],[29,0,29,4],[29,5,29,7],[29,8,29,13],[30,0,30,4],[30,5,30,7],[30,8,30,13],[26,0,26,4],[26,5,26,7],[26,8,26,13],[27,0,27,4],[27,5,27,7],[27,8,27,13],[24,0,24,4],[24,5,24,7],[24,8,24,13],[25,0,25,4],[25,5,25,7],[25,8,25,13],[21,0,21,13],[22,0,22,4],[22,5,22,7],[22,8,22,13],[23,0,23,4],[23,5,23,7],[23,8,23,13],[17,0,17,3],[18,0,18,13],[19,0,19,4],[19,5,19,7],[19,8,19,13],[20,0,20,4],[20,5,20,7],[20,8,20,13],[13,1,14,3],[13,4,14,6],[13,7,14,9],[15,0,15,13],[16,1,16,2],[16,4,16,5],[16,6,16,13],[8,1,8,7],[9,1,9,3],[11,0,11,13],[12,0,12,13],[0,0,0,13],[1,0,2,13],[3,0,3,13],[5,1,5,6],[6,1,6,7],[4,1,4,6]]}
["DEKLARACJA O WYSOKOŚCI OPŁATY ZA GOSPODAROWANIE ODPADAMI KOMUNALNYMI "]
["Podstawa prawna: Ustawa z dnia 13 września 1996 r. o utrzymaniu czystości i porządku w gminach (Dz. U. z 2016 r. poz. 250 z późn.zm.).\nSkładający: Właściciele nieruchomości zamieszkałych (w rozumieniu art. 2 ust. 1 pkt 4 ustawy), położonych na terenie miasta Wałcz.\nTermin składania: - 14 dni od dnia zamieszkania na danej nieruchomości pierwszego mieszkańca lub powstania na  \n                                    nieruchomości odpadów komunalnych,\n                               - 14 dni od dnia, w którym nastąpiły zmiany danych określonych w deklaracji.\nMiejsce składania: Urząd Miasta Wałcz, 78-600 Wałcz, Plac Wolności 1; e-deklaracja drogą elektroniczną.\nOrgan właściwy do przyjęcia deklaracji: Burmistrz Miasta Wałcz. "]
[]
["A. OBOWIĄZEK ZŁOŻENIA DEKLARACJI (zaznaczyć właściwe i wpisać datę zaistnienia)"]
[1,"Pierwsza deklaracja – data powstania obowiązku opłaty "]
[null,"Zmiana danych zawartych w poprzedniej deklaracji z dniem"]
[null,"(dodatkowo w pkt. F wpisać przyczynę zmiany danych)"]
[null,"Wygaśnięcie obowiązku podatkowego z dniem"]
[null,"(dodatkowo w pkt. F wpisać przyczynę wygaśnięcia obowiązku podatkowego)"]
[null,"Korekta deklaracji od dnia ",null,null,null,null,"do dnia"]
[null,"(zaznaczyć w przypadku podania błędnych danych w złożonej już deklaracji, a w pkt. F wpisać  przyczynę korekty)"]
["B. DANE WŁAŚCICIELA NIERUCHOMOŚCI (zaznaczyć właściwe) * "]
["RODZAJ PRAWA DO NIERUCHOMOŚCI"]
[2,"właściciel, posiadacz, \nużytkownik wieczysty\nużytkownik",null,null,"współwłaściciel, \nwspółposiadacz, współużytkownik wieczysty",null,null,"jednostka organizacyjna lub osoba posiadająca nieruchomość                                           w zarządzie"]
[]
["DANE IDENTYFIKACYJNE"]
[3,"osoba fizyczna",null,null,"osoba prawna",null,"Jednostka organizacyjna nieposiadająca osobowości prawnej"]
["4. Imię i nazwisko / Pełna nazwa podmiotu"]
[]
["5. Identyfikator PESEL / NIP / REGON",null,null,null,null,"6.  telefon kontaktowy",null,null,"7. Adres e-mail"]
[]
["ADRES ZAMIESZKANIA / ADRES SIEDZIBY PODMIOTU"]
["8. Kraj",null,null,null,null,"9. Województwo",null,null,"10. Powiat"]
[]
["11. Gmina",null,null,null,null,"12. Ulica",null,null,"13. Numer domu/lokalu"]
[]
["14. Miejscowość",null,null,null,null,"15. Kod pocztowy",null,null,"16. Poczta"]
[]
["ADRES DO KORESPONDENCJI (podać, jeżeli jest inny niż adres zamieszkania / siedziby)"]
["17. Kraj",null,null,null,null,"18. Województwo",null,null,"19. Powiat"]
[]
["20. Gmina",null,null,null,null,"21. Ulica",null,null,"22. Numer domu/lokalu"]
[]
["23. Miejscowość",null,null,null,null,"24. Kod pocztowy",null,null,"25. Poczta"]
[]
["C. DANE DOTYCZĄCE NIERUCHOMOŚCI, NA KTÓREJ POWSTAJĄ ODPADY KOMUNALNE"]
["       (w przypadku budynków wielorodzinnych wypełnić załącznik Z-1)"]
["26. Ulica",null,null,null,null,"27. Numer domu",null,null,"28. Numer lokalu"]
[]
["D. OBLICZENIE OPŁATY ZA GOSPODAROWANIE ODPADAMI KOMUNALNYMI"]
["29. Oświadczam, że na terenie nieruchomości odpady będą gromadzone i odbierane w sposób:",null,null,null,null,30,"Selektywny               (odpady segregowane)              ",null,null,"Nieselektywny                             (odpady zmieszane)              "]
[]
["D1. Nieruchomości zamieszkałe – BUDYNKI JEDNORODZINNE"]
["         W poz. 33 wpisać opłatę wynikającą z liczby osób zamieszkująch w gospodarstwie domowym podaną w poz. 32"]
["31.  Liczba osób w gospodarstwie domowym"]
["Wielkość gospodarstwa domowego ",null,null,null,null,"Stawka opłaty za odpady komunalne \n(zł / miesiąc)",null,null,null,"Miesięczna    \nkwota opłaty\n"]
[]
[null,null,null,null,null,"segregowane",null,"zmieszane"]
["Gospodarstwo jednoosobowe",null,null,null,null,12,null,17,null,{"$f":"IFERROR(IF(A93=TRUE,(IF(B93=FALSE,D93,\"popraw pkt 30\")),(IF(B93=TRUE,E93,\"uzupełnij pkt 30\"))),\"uzupełnij pkt 32\")","v":"uzupełnij pkt 30"}]
["Gospodarstwo dwuosobowe",null,null,null,null,24,null,34]
["Gospodarstwo trzyosobowe",null,null,null,null,36,null,51]
["Gospodarstwo czteroosobowe",null,null,null,null,42,null,62]
["Gospodarstwo liczące więcej niż cztery osoby",null,null,null,null,48,null,73]
[]
["D2. Nieruchomości zamieszkałe – BUDYNKI WIELORODZINNE"]
["         (wpisać liczbę gospodarstw domowych z załącznika Z-1)"]
["Wielkość gospodarstwa domowego ",null,null,null,null,"Liczba gospodarstw \nna terenie nieruchomości",null,"Stawka opłaty za odpady komunalne (zł / miesiąc)",null,null,null,null,"Opłata (zł/miesiąc)"]
[]
[null,null,null,null,null,null,null,"segregowane",null,"niesegregowane"]
["Gospodarstwo jednoosobowe",null,null,null,null,{"$f":"COUNTIF('Załącznik nr 1'!E13:E177,\"1\")","v":0},null,12,null,17,null,null,{"$f":"IF(A$93=TRUE,(IF(B$93=FALSE,F60*H60,\"popraw pkt 30\")),(IF(B$93=TRUE,F60*J60,\"popraw pkt 30\")))","v":"popraw pkt 30"}]
["Gospodarstwo dwuosobowe",null,null,null,null,{"$f":"COUNTIF('Załącznik nr 1'!E13:E177,\"2\")","v":0},null,24,null,34,null,null,{"$f":"IF(A$93=TRUE,(IF(B$93=FALSE,F61*H61,\"popraw pkt 30\")),(IF(B$93=TRUE,F61*J61,\"popraw pkt 30\")))","v":"popraw pkt 30"}]
["Gospodarstwo trzyosobowe",null,null,null,null,{"$f":"COUNTIF('Załącznik nr 1'!E13:E177,\"3\")","v":0},null,36,null,51,null,null,{"$f":"IF(A$93=TRUE,(IF(B$93=FALSE,F62*H62,\"popraw pkt 30\")),(IF(B$93=TRUE,F62*J62,\"popraw pkt 30\")))","v":"popraw pkt 30"}]
["Gospodarstwo czteroosobowe",null,null,null,null,{"$f":"COUNTIF('Załącznik nr 1'!E13:E177,\"4\")","v":0},null,42,null,62,null,null,{"$f":"IF(A$93=TRUE,(IF(B$93=FALSE,F63*H63,\"popraw pkt 30\")),(IF(B$93=TRUE,F63*J63,\"popraw pkt 30\")))","v":"popraw pkt 30"}]
["Gospodarstwo liczące więcej niż cztery osoby",null,null,null,null,{"$f":"COUNTIF('Załącznik nr 1'!E13:E177,\">=5\")","v":0},null,48,null,73,null,null,{"$f":"IF(A$93=TRUE,(IF(B$93=FALSE,F64*H64,\"popraw pkt 30\")),(IF(B$93=TRUE,F64*J64,\"popraw pkt 30\")))","v":"popraw pkt 30"}]
[]
["Łączna kwota opłaty miesięcznej ",null,null,null,null,null,null,{"$f":"SUM(M60:N65)","v":0}]
["E. UWAGI SKŁADAJĄCEGO DEKLARACJĘ"]
[]
[]
[]
[]
["F. ZAŁĄCZNIKI"]
["47.",null,"Załącznik Z-1:  ............. szt.",null,null,{"$f":"IF(N93=TRUE,\"Przejdź do arkusza: załącznik 1\",\" \")","v":" "}]
[null,null,"Inny:"]
["G. DATA WYPEŁNIENIA I PODPIS SKŁADAJĄCEGO DEKLARACJĘ"]
["47.  Data wypełnienia deklaracji",null,null,null,null,null,null,"48.  Czytelny podpis"]
[]
[]
[]
[]
["H. ADNOTACJE URZĘDU"]
[]
[]
[]
[]
[]
[]
[]
[null,null,null,null,null,null,1,12,17]
[null,null,null,null,null,null,2,24,34]
[null,null,null,null,null,null,3,36,51]
[null,null,null,null,null,null,4,42,62]
[false,false,null,{"$f":"VLOOKUP(G45,G89:I93,2,TRUE)","v":{"$error":"#N/A"}},{"$f":"VLOOKUP(G45,G89:I93,3,TRUE)","v":{"$error":"#N/A"}},null,5,48,73,null,null,null,null,false]

{"sheet":"Załącznik nr 1","index":1,"n_rows":178,"n_cols":16,"rows_kept":178,"cut":false,"hidden":false,"merged":[[19,11,19,12],[14,7,14,9],[19,7,19,9],[18,7,18,9],[17,7,17,9],[16,7,16,9],[15,7,15,9],[14,11,14,12],[15,11,15,12],[16,11,16,12],[17,11,17,12],[18,11,18,12],[0,0,0,5],[13,7,13,10],[6,0,6,5],[1,0,1,5],[2,0,2,5],[3,0,3,5],[4,0,4,5],[5,0,5,5],[7,0,7,5],[8,0,8,5],[9,0,9,5],[10,0,11,0],[10,1,11,1],[10,2,11,2],[10,3,11,3],[10,5,11,5]]}
["Z-1 ZAŁĄCZNIK do deklaracji o wysokości opłaty za gospodarowanie odpadami komunalnymi"]
["Podstawa prawna: Ustawa z dnia 13 września 1996 r. o utrzymaniu czystości i porządku w gminach (Dz. U. z 2016 r. poz. 250                        z późn.zm.)."]
["Składający: Właściciele nieruchomości zamieszkałych (w rozumieniu art. 2 ust. 1 pkt 4 ustawy), położonych na terenie miasta Wałcz."]
["Termin składania: - 14 dni od dnia zamieszkania na danej nieruchomości pierwszego mieszkańca lub powstania na  "]
["                                  nieruchomości odpadów komunalnych,"]
["                                  - 14 dni od dnia, w którym nastąpiły zmiany danych określonych w deklaracji."]
["Miejsce składania: Urząd Miasta Wałcz, 78-600 Wałcz, Plac Wolności 1; e-deklaracja drogą elektroniczną."]
["Organ właściwy do przyjęcia deklaracji: Burmistrz Miasta Wałcz."]
[]
["A. Dane do obliczenia opłaty za gospodarowanie odpadami komunalnymi - BUDYNKI WIELORODZINNE"]
["L.p.","Ulica/Osiedle","Nr domu","Nr lokalu","Ilość osób","Należna opłata (obliczona na podstawie tabeli, część E2 deklaracji)"]
[null,null,null,null,"w gospodarstwie domowym"]
[1,null,null,null,null,{"$f":"IF(Deklaracja!A$93=TRUE,(IF(Deklaracja!B$93=FALSE,O13,\"popraw pkt 30 w deklaracji\")),(IF(Deklaracja!B$93=TRUE,P13,\"uzupełnij pkt 30 w deklaracji\")))","v":"uzupełnij pkt 30 w deklaracji"},null,null,null,null,null,null,null,null,{"$f":"IFERROR(VLOOKUP(E13,H$25:J$29,2,TRUE),0)","v":0},{"$f":"IFERROR(VLOOKUP(E13,H$25:J$29,3,TRUE),0)","v":0}]
[2,null,null,null,null,{"$f":"IF(Deklaracja!A$93=TRUE,(IF(Deklaracja!B$93=FALSE,O14,\"popraw pkt 30 w deklaracji\")),(IF(Deklaracja!B$93=TRUE,P14,\"uzupełnij pkt 30 w deklaracji\")))","v":"uzupełnij pkt 30 w deklaracji"},null,null,null,null,null,null,null,null,{"$f":"IFERROR(VLOOKUP(E14,H$25:J$29,2,TRUE),0)","v":0},{"$f":"IFERROR(VLOOKUP(E14,H$25:J$29,3,TRUE),0)","v":0}]
[3,null,null,null,null,{"$f":"IF(Deklaracja!A$93=TRUE,(IF(Deklaracja!B$93=FALSE,O15,\"popraw pkt 30 w deklaracji\")),(IF(Deklaracja!B$93=TRUE,P15,\"uzupełnij pkt 30 w deklaracji\")))","v":"uzupełnij pkt 30 w deklaracji"},null,null,null,null,null,null,null,null,0,0]
[4,null,null,null,null,{"$f":"IF(Deklaracja!A$93=TRUE,(IF(Deklaracja!B$93=FALSE,O16,\"popraw pkt 30 w deklaracji\")),(IF(Deklaracja!B$93=TRUE,P16,\"uzupełnij pkt 30 w deklaracji\")))","v":"uzupełnij pkt 30 w deklaracji"},null,null,null,null,null,null,null,null,0,0]
[5,null,null,null,null,{"$f":"IF(Deklaracja!A$93=TRUE,(IF(Deklaracja!B$93=FALSE,O17,\"popraw pkt 30 w deklaracji\")),(IF(Deklaracja!B$93=TRUE,P17,\"uzupełnij pkt 30 w deklaracji\")))","v":"uzupełnij pkt 30 w deklaracji"},null,null,null,null,null,null,null,null,0,0]
[6,null,null,null,null,{"$f":"IF(Deklaracja!A$93=TRUE,(IF(Deklaracja!B$93=FALSE,O18,\"popraw pkt 30 w deklaracji\")),(IF(Deklaracja!B$93=TRUE,P18,\"uzupełnij pkt 30 w deklaracji\")))","v":"uzupełnij pkt 30 w deklaracji"},null,null,null,null,null,null,null,null,0,0]
[7,null,null,null,null,{"$f":"IF(Deklaracja!A$93=TRUE,(IF(Deklaracja!B$93=FALSE,O19,\"popraw pkt 30 w deklaracji\")),(IF(Deklaracja!B$93=TRUE,P19,\"uzupełnij pkt 30 w deklaracji\")))","v":"uzupełnij pkt 30 w deklaracji"},null,null,null,null,null,null,null,null,0,0]
[8,null,null,null,null,{"$f":"IF(Deklaracja!A$93=TRUE,(IF(Deklaracja!B$93=FALSE,O20,\"popraw pkt 30 w deklaracji\")),(IF(Deklaracja!B$93=TRUE,P20,\"uzupełnij pkt 30 w deklaracji\")))","v":"uzupełnij pkt 30 w deklaracji"},null,null,null,null,null,null,null,null,0,0]
[9,null,null,null,null,{"$f":"IF(Deklaracja!A$93=TRUE,(IF(Deklaracja!B$93=FALSE,O21,\"popraw pkt 30 w deklaracji\")),(IF(Deklaracja!B$93=TRUE,P21,\"uzupełnij pkt 30 w deklaracji\")))","v":"uzupełnij pkt 30 w deklaracji"},null,null,null,null,null,null,null,null,0,0]
[10,null,null,null,null,{"$f":"IF(Deklaracja!A$93=TRUE,(IF(Deklaracja!B$93=FALSE,O22,\"popraw pkt 30 w deklaracji\")),(IF(Deklaracja!B$93=TRUE,P22,\"uzupełnij pkt 30 w deklaracji\")))","v":"uzupełnij pkt 30 w deklaracji"},null,null,null,null,null,null,null,null,0,0]
[11,null,null,null,null,{"$f":"IF(Deklaracja!A$93=TRUE,(IF(Deklaracja!B$93=FALSE,O23,\"popraw pkt 30 w deklaracji\")),(IF(Deklaracja!B$93=TRUE,P23,\"uzupełnij pkt 30 w deklaracji\")))","v":"uzupełnij pkt 30 w deklaracji"},null,null,null,null,null,null,null,null,0,0]
[12,null,null,null,null,{"$f":"IF(Deklaracja!A$93=TRUE,(IF(Deklaracja!B$93=FALSE,O24,\"popraw pkt 30 w deklaracji\")),(IF(Deklaracja!B$93=TRUE,P24,\"uzupełnij pkt 30 w deklaracji\")))","v":"uzupełnij pkt 30 w deklaracji"},null,null,null,null,null,null,null,null,0,0]
[13,null,null,null,null,{"$f":"IF(Deklaracja!A$93=TRUE,(IF(Deklaracja!B$93=FALSE,O25,\"popraw pkt 30 w deklaracji\")),(IF(Deklaracja!B$93=TRUE,P25,\"uzupełnij pkt 30 w deklaracji\")))","v":"uzupełnij pkt 30 w deklaracji"},null,1,12,17,{"$f":"COUNTIF(E13:E177,\"1\")","v":0},null,null,null,0,0]
[14,null,null,null,null,{"$f":"IF(Deklaracja!A$93=TRUE,(IF(Deklaracja!B$93=FALSE,O26,\"popraw pkt 30 w deklaracji\")),(IF(Deklaracja!B$93=TRUE,P26,\"uzupełnij pkt 30 w deklaracji\")))","v":"uzupełnij pkt 30 w deklaracji"},null,2,24,34,{"$f":"COUNTIF(E13:E177,\"2\")","v":0},null,null,null,0,0]
[15,null,null,null,null,{"$f":"IF(Deklaracja!A$93=TRUE,(IF(Deklaracja!B$93=FALSE,O27,\"popraw pkt 30 w deklaracji\")),(IF(Deklaracja!B$93=TRUE,P27,\"uzupełnij pkt 30 w deklaracji\")))","v":"uzupełnij pkt 30 w deklaracji"},null,3,36,51,{"$f":"COUNTIF(E13:E177,\"3\")","v":0},null,null,null,0,0]
[16,null,null,null,null,{"$f":"IF(Deklaracja!A$93=TRUE,(IF(Deklaracja!B$93=FALSE,O28,\"popraw pkt 30 w deklaracji\")),(IF(Deklaracja!B$93=TRUE,P28,\"uzupełnij pkt 30 w deklaracji\")))","v":"uzupełnij pkt 30 w deklaracji"},null,4,42,62,{"$f":"COUNTIF(E13:E177,\"4\")","v":0},null,null,null,0,0]
[17,null,null,null,null,{"$f":"IF(Deklaracja!A$93=TRUE,(IF(Deklaracja!B$93=FALSE,O29,\"popraw pkt 30 w deklaracji\")),(IF(Deklaracja!B$93=TRUE,P29,\"uzupełnij pkt 30 w deklaracji\")))","v":"uzupełnij pkt 30 w deklaracji"},null,5,48,73,{"$f":"COUNTIF(E13:E177,\">=5\")","v":0},null,null,null,0,0]
[18,null,null,null,null,{"$f":"IF(Deklaracja!A$93=TRUE,(IF(Deklaracja!B$93=FALSE,O30,\"popraw pkt 30 w deklaracji\")),(IF(Deklaracja!B$93=TRUE,P30,\"uzupełnij pkt 30 w deklaracji\")))","v":"uzupełnij pkt 30 w deklaracji"},null,null,null,null,null,null,null,null,0,0]
[19,null,null,null,null,{"$f":"IF(Deklaracja!A$93=TRUE,(IF(Deklaracja!B$93=FALSE,O31,\"popraw pkt 30 w deklaracji\")),(IF(Deklaracja!B$93=TRUE,P31,\"uzupełnij pkt 30 w deklaracji\")))","v":"uzupełnij pkt 30 w deklaracji"},null,null,null,null,null,null,null,null,0,0]
[20,null,null,null,null,{"$f":"IF(Deklaracja!A$93=TRUE,(IF(Deklaracja!B$93=FALSE,O32,\"popraw pkt 30 w deklaracji\")),(IF(Deklaracja!B$93=TRUE,P32,\"uzupełnij pkt 30 w deklaracji\")))","v":"uzupełnij pkt 30 w deklaracji"},null,null,null,null,null,null,null,null,0,0]
[21,null,null,null,null,{"$f":"IF(Deklaracja!A$93=TRUE,(IF(Deklaracja!B$93=FALSE,O33,\"popraw pkt 30 w deklaracji\")),(IF(Deklaracja!B$93=TRUE,P33,\"uzupełnij pkt 30 w deklaracji\")))","v":"uzupełnij pkt 30 w deklaracji"},null,null,null,null,null,null,null,null,0,0]
[22,null,null,null,null,{"$f":"IF(Deklaracja!A$93=TRUE,(IF(Deklaracja!B$93=FALSE,O34,\"popraw pkt 30 w deklaracji\")),(IF(Deklaracja!B$93=TRUE,P34,\"uzupełnij pkt 30 w deklaracji\")))","v":"uzupełnij pkt 30 w deklaracji"},null,null,null,null,null,null,null,null,0,0]
[23,null,null,null,null,{"$f":"IF(Deklaracja!A$93=TRUE,(IF(Deklaracja!B$93=FALSE,O35,\"popraw pkt 30 w deklaracji\")),(IF(Deklaracja!B$93=TRUE,P35,\"uzupełnij pkt 30 w deklaracji\")))","v":"uzupełnij pkt 30 w deklaracji"},null,null,null,null,null,null,null,null,0,0]
[24,null,null,null,null,{"$f":"IF(Deklaracja!A$93=TRUE,(IF(Deklaracja!B$93=FALSE,O36,\"popraw pkt 30 w deklaracji\")),(IF(Deklaracja!B$93=TRUE,P36,\"uzupełnij pkt 30 w deklaracji\")))","v":"uzupełnij pkt 30 w deklaracji"},null,null,null,null,null,null,null,null,0,0]
[25,null,null,null,null,{"$f":"IF(Deklaracja!A$93=TRUE,(IF(Deklaracja!B$93=FALSE,O37,\"popraw pkt 30 w deklaracji\")),(IF(Deklaracja!B$93=TRUE,P37,\"uzupełnij pkt 30 w deklaracji\")))","v":"uzupełnij pkt 30 w deklaracji"},null,null,null,null,null,null,null,null,0,0]
[26,null,null,null,null,{"$f":"IF(Deklaracja!A$93=TRUE,(IF(Deklaracja!B$93=FALSE,O38,\"popraw pkt 30 w deklaracji\")),(IF(Deklaracja!B$93=TRUE,P38,\"uzupełnij pkt 30 w deklaracji\")))","v":"uzupełnij pkt 30 w deklaracji"},null,null,null,null,null,null,null,null,0,0]
[27,null,null,null,null,{"$f":"IF(Deklaracja!A$93=TRUE,(IF(Deklaracja!B$93=FALSE,O39,\"popraw pkt 30 w deklaracji\")),(IF(Deklaracja!B$93=TRUE,P39,\"uzupełnij pkt 30 w deklaracji\")))","v":"uzupełnij pkt 30 w deklaracji"},null,null,null,null,null,null,null,null,0,0]
[28,null,null,null,null,{"$f":"IF(Deklaracja!A$93=TRUE,(IF(Deklaracja!B$93=FALSE,O40,\"popraw pkt 30 w deklaracji\")),(IF(Deklaracja!B$93=TRUE,P40,\"uzupełnij pkt 30 w deklaracji\")))","v":"uzupełnij pkt 30 w deklaracji"},null,null,null,null,null,null,null,null,0,0]
[29,null,null,null,null,{"$f":"IF(Deklaracja!A$93=TRUE,(IF(Deklaracja!B$93=FALSE,O41,\"popraw pkt 30 w deklaracji\")),(IF(Deklaracja!B$93=TRUE,P41,\"uzupełnij pkt 30 w deklaracji\")))","v":"uzupełnij pkt 30 w deklaracji"},null,null,null,null,null,null,null,null,0,0]
[30,null,null,null,null,{"$f":"IF(Deklaracja!A$93=TRUE,(IF(Deklaracja!B$93=FALSE,O42,\"popraw pkt 30 w deklaracji\")),(IF(Deklaracja!B$93=TRUE,P42,\"uzupełnij pkt 30 w deklaracji\")))","v":"uzupełnij pkt 30 w deklaracji"},null,null,null,null,null,null,null,null,0,0]
[31,null,null,null,null,{"$f":"IF(Deklaracja!A$93=TRUE,(IF(Deklaracja!B$93=FALSE,O43,\"popraw pkt 30 w deklaracji\")),(IF(Deklaracja!B$93=TRUE,P43,\"uzupełnij pkt 30 w deklaracji\")))","v":"uzupełnij pkt 30 w deklaracji"},null,null,null,null,null,null,null,null,0,0]
[32,null,null,null,null,{"$f":"IF(Deklaracja!A$93=TRUE,(IF(Deklaracja!B$93=FALSE,O44,\"popraw pkt 30 w deklaracji\")),(IF(Deklaracja!B$93=TRUE,P44,\"uzupełnij pkt 30 w deklaracji\")))","v":"uzupełnij pkt 30 w deklaracji"},null,null,null,null,null,null,null,null,0,0]
[33,null,null,null,null,{"$f":"IF(Deklaracja!A$93=TRUE,(IF(Deklaracja!B$93=FALSE,O45,\"popraw pkt 30 w deklaracji\")),(IF(Deklaracja!B$93=TRUE,P45,\"uzupełnij pkt 30 w deklaracji\")))","v":"uzupełnij pkt 30 w deklaracji"},null,null,null,null,null,null,null,null,0,0]
[34,null,null,null,null,{"$f":"IF(Deklaracja!A$93=TRUE,(IF(Deklaracja!B$93=FALSE,O46,\"popraw pkt 30 w deklaracji\")),(IF(Deklaracja!B$93=TRUE,P46,\"uzupełnij pkt 30 w deklaracji\")))","v":"uzupełnij pkt 30 w deklaracji"},null,null,null,null,null,null,null,null,0,0]
[35,null,null,null,null,{"$f":"IF(Deklaracja!A$93=TRUE,(IF(Deklaracja!B$93=FALSE,O47,\"popraw pkt 30 w deklaracji\")),(IF(Deklaracja!B$93=TRUE,P47,\"uzupełnij pkt 30 w deklaracji\")))","v":"uzupełnij pkt 30 w deklaracji"},null,null,null,null,null,null,null,null,0,0]
[36,null,null,null,null,{"$f":"IF(Deklaracja!A$93=TRUE,(IF(Deklaracja!B$93=FALSE,O48,\"popraw pkt 30 w deklaracji\")),(IF(Deklaracja!B$93=TRUE,P48,\"uzupełnij pkt 30 w deklaracji\")))","v":"uzupełnij pkt 30 w deklaracji"},null,null,null,null,null,null,null,null,0,0]
[37,null,null,null,null,{"$f":"IF(Deklaracja!A$93=TRUE,(IF(Deklaracja!B$93=FALSE,O49,\"popraw pkt 30 w deklaracji\")),(IF(Deklaracja!B$93=TRUE,P49,\"uzupełnij pkt 30 w deklaracji\")))","v":"uzupełnij pkt 30 w deklaracji"},null,null,null,null,null,null,null,null,0,0]
[38,null,null,null,null,{"$f":"IF(Deklaracja!A$93=TRUE,(IF(Deklaracja!B$93=FALSE,O50,\"popraw pkt 30 w deklaracji\")),(IF(Deklaracja!B$93=TRUE,P50,\"uzupełnij pkt 30 w deklaracji\")))","v":"uzupełnij pkt 30 w deklaracji"},null,null,null,null,null,null,null,null,0,0]
[39,null,null,null,null,{"$f":"IF(Deklaracja!A$93=TRUE,(IF(Deklaracja!B$93=FALSE,O51,\"popraw pkt 30 w deklaracji\")),(IF(Deklaracja!B$93=TRUE,P51,\"uzupełnij pkt 30 w deklaracji\")))","v":"uzupełnij pkt 30 w deklaracji"},null,null,null,null,null,null,null,null,0,0]
[40,null,null,null,null,{"$f":"IF(Deklaracja!A$93=TRUE,(IF(Deklaracja!B$93=FALSE,O52,\"popraw pkt 30 w deklaracji\")),(IF(Deklaracja!B$93=TRUE,P52,\"uzupełnij pkt 30 w deklaracji\")))","v":"uzupełnij pkt 30 w deklaracji"},null,null,null,null,null,null,null,null,0,0]
[41,null,null,null,null,{"$f":"IF(Deklaracja!A$93=TRUE,(IF(Deklaracja!B$93=FALSE,O53,\"popraw pkt 30 w deklaracji\")),(IF(Deklaracja!B$93=TRUE,P53,\"uzupełnij pkt 30 w deklaracji\")))","v":"uzupełnij pkt 30 w deklaracji"},null,null,null,null,null,null,null,null,0,0]
[42,null,null,null,null,{"$f":"IF(Deklaracja!A$93=TRUE,(IF(Deklaracja!B$93=FALSE,O54,\"popraw pkt 30 w deklaracji\")),(IF(Deklaracja!B$93=TRUE,P54,\"uzupełnij pkt 30 w deklaracji\")))","v":"uzupełnij pkt 30 w deklaracji"},null,null,null,null,null,null,null,null,0,0]
[43,null,null,null,null,{"$f":"IF(Deklaracja!A$93=TRUE,(IF(Deklaracja!B$93=FALSE,O55,\"popraw pkt 30 w deklaracji\")),(IF(Deklaracja!B$93=TRUE,P55,\"uzupełnij pkt 30 w deklaracji\")))","v":"uzupełnij pkt 30 w deklaracji"},null,null,null,null,null,null,null,null,0,0]
[44,null,null,null,null,{"$f":"IF(Deklaracja!A$93=TRUE,(IF(Deklaracja!B$93=FALSE,O56,\"popraw pkt 30 w deklaracji\")),(IF(Deklaracja!B$93=TRUE,P56,\"uzupełnij pkt 30 w deklaracji\")))","v":"uzupełnij pkt 30 w deklaracji"},null,null,null,null,null,null,null,null,0,0]
[45,null,null,null,null,{"$f":"IF(Deklaracja!A$93=TRUE,(IF(Deklaracja!B$93=FALSE,O57,\"popraw pkt 30 w deklaracji\")),(IF(Deklaracja!B$93=TRUE,P57,\"uzupełnij pkt 30 w deklaracji\")))","v":"uzupełnij pkt 30 w deklaracji"},null,null,null,null,null,null,null,null,0,0]
[46,null,null,null,null,{"$f":"IF(Deklaracja!A$93=TRUE,(IF(Deklaracja!B$93=FALSE,O58,\"popraw pkt 30 w deklaracji\")),(IF(Deklaracja!B$93=TRUE,P58,\"uzupełnij pkt 30 w deklaracji\")))","v":"uzupełnij pkt 30 w deklaracji"},null,null,null,null,null,null,null,null,0,0]
[47,null,null,null,null,{"$f":"IF(Deklaracja!A$93=TRUE,(IF(Deklaracja!B$93=FALSE,O59,\"popraw pkt 30 w deklaracji\")),(IF(Deklaracja!B$93=TRUE,P59,\"uzupełnij pkt 30 w deklaracji\")))","v":"uzupełnij pkt 30 w deklaracji"},null,null,null,null,null,null,null,null,0,0]
[48,null,null,null,null,{"$f":"IF(Deklaracja!A$93=TRUE,(IF(Deklaracja!B$93=FALSE,O60,\"popraw pkt 30 w deklaracji\")),(IF(Deklaracja!B$93=TRUE,P60,\"uzupełnij pkt 30 w deklaracji\")))","v":"uzupełnij pkt 30 w deklaracji"},null,null,null,null,null,null,null,null,0,0]
[49,null,null,null,null,{"$f":"IF(Deklaracja!A$93=TRUE,(IF(Deklaracja!B$93=FALSE,O61,\"popraw pkt 30 w deklaracji\")),(IF(Deklaracja!B$93=TRUE,P61,\"uzupełnij pkt 30 w deklaracji\")))","v":"uzupełnij pkt 30 w deklaracji"},null,null,null,null,null,null,null,null,0,0]
[50,null,null,null,null,{"$f":"IF(Deklaracja!A$93=TRUE,(IF(Deklaracja!B$93=FALSE,O62,\"popraw pkt 30 w deklaracji\")),(IF(Deklaracja!B$93=TRUE,P62,\"uzupełnij pkt 30 w deklaracji\")))","v":"uzupełnij pkt 30 w deklaracji"},null,null,null,null,null,null,null,null,0,0]
[51,null,null,null,null,{"$f":"IF(Deklaracja!A$93=TRUE,(IF(Deklaracja!B$93=FALSE,O63,\"popraw pkt 30 w deklaracji\")),(IF(Deklaracja!B$93=TRUE,P63,\"uzupełnij pkt 30 w deklaracji\")))","v":"uzupełnij pkt 30 w deklaracji"},null,null,null,null,null,null,null,null,0,0]
[52,null,null,null,null,{"$f":"IF(Deklaracja!A$93=TRUE,(IF(Deklaracja!B$93=FALSE,O64,\"popraw pkt 30 w deklaracji\")),(IF(Deklaracja!B$93=TRUE,P64,\"uzupełnij pkt 30 w deklaracji\")))","v":"uzupełnij pkt 30 w deklaracji"},null,null,null,null,null,null,null,null,0,0]
[53,null,null,null,null,{"$f":"IF(Deklaracja!A$93=TRUE,(IF(Deklaracja!B$93=FALSE,O65,\"popraw pkt 30 w deklaracji\")),(IF(Deklaracja!B$93=TRUE,P65,\"uzupełnij pkt 30 w deklaracji\")))","v":"uzupełnij pkt 30 w deklaracji"},null,null,null,null,null,null,null,null,0,0]
[54,null,null,null,null,{"$f":"IF(Deklaracja!A$93=TRUE,(IF(Deklaracja!B$93=FALSE,O66,\"popraw pkt 30 w deklaracji\")),(IF(Deklaracja!B$93=TRUE,P66,\"uzupełnij pkt 30 w deklaracji\")))","v":"uzupełnij pkt 30 w deklaracji"},null,null,null,null,null,null,null,null,0,0]
[55,null,null,null,null,{"$f":"IF(Deklaracja!A$93=TRUE,(IF(Deklaracja!B$93=FALSE,O67,\"popraw pkt 30 w deklaracji\")),(IF(Deklaracja!B$93=TRUE,P67,\"uzupełnij pkt 30 w deklaracji\")))","v":"uzupełnij pkt 30 w deklaracji"},null,null,null,null,null,null,null,null,0,0]
[56,null,null,null,null,{"$f":"IF(Deklaracja!A$93=TRUE,(IF(Deklaracja!B$93=FALSE,O68,\"popraw pkt 30 w deklaracji\")),(IF(Deklaracja!B$93=TRUE,P68,\"uzupełnij pkt 30 w deklaracji\")))","v":"uzupełnij pkt 30 w deklaracji"},null,null,null,null,null,null,null,null,0,0]
[57,null,null,null,null,{"$f":"IF(Deklaracja!A$93=TRUE,(IF(Deklaracja!B$93=FALSE,O69,\"popraw pkt 30 w deklaracji\")),(IF(Deklaracja!B$93=TRUE,P69,\"uzupełnij pkt 30 w deklaracji\")))","v":"uzupełnij pkt 30 w deklaracji"},null,null,null,null,null,null,null,null,0,0]
[58,null,null,null,null,{"$f":"IF(Deklaracja!A$93=TRUE,(IF(Deklaracja!B$93=FALSE,O70,\"popraw pkt 30 w deklaracji\")),(IF(Deklaracja!B$93=TRUE,P70,\"uzupełnij pkt 30 w deklaracji\")))","v":"uzupełnij pkt 30 w deklaracji"},null,null,null,null,null,null,null,null,0,0]
[59,null,null,null,null,{"$f":"IF(Deklaracja!A$93=TRUE,(IF(Deklaracja!B$93=FALSE,O71,\"popraw pkt 30 w deklaracji\")),(IF(Deklaracja!B$93=TRUE,P71,\"uzupełnij pkt 30 w deklaracji\")))","v":"uzupełnij pkt 30 w deklaracji"},null,null,null,null,null,null,null,null,0,0]
[60,null,null,null,null,{"$f":"IF(Deklaracja!A$93=TRUE,(IF(Deklaracja!B$93=FALSE,O72,\"popraw pkt 30 w deklaracji\")),(IF(Deklaracja!B$93=TRUE,P72,\"uzupełnij pkt 30 w deklaracji\")))","v":"uzupełnij pkt 30 w deklaracji"},null,null,null,null,null,null,null,null,0,0]
[61,null,null,null,null,{"$f":"IF(Deklaracja!A$93=TRUE,(IF(Deklaracja!B$93=FALSE,O73,\"popraw pkt 30 w deklaracji\")),(IF(Deklaracja!B$93=TRUE,P73,\"uzupełnij pkt 30 w deklaracji\")))","v":"uzupełnij pkt 30 w deklaracji"},null,null,null,null,null,null,null,null,0,0]
[62,null,null,null,null,{"$f":"IF(Deklaracja!A$93=TRUE,(IF(Deklaracja!B$93=FALSE,O74,\"popraw pkt 30 w deklaracji\")),(IF(Deklaracja!B$93=TRUE,P74,\"uzupełnij pkt 30 w deklaracji\")))","v":"uzupełnij pkt 30 w deklaracji"},null,null,null,null,null,null,null,null,0,0]
[63,null,null,null,null,{"$f":"IF(Deklaracja!A$93=TRUE,(IF(Deklaracja!B$93=FALSE,O75,\"popraw pkt 30 w deklaracji\")),(IF(Deklaracja!B$93=TRUE,P75,\"uzupełnij pkt 30 w deklaracji\")))","v":"uzupełnij pkt 30 w deklaracji"},null,null,null,null,null,null,null,null,0,0]
[64,null,null,null,null,{"$f":"IF(Deklaracja!A$93=TRUE,(IF(Deklaracja!B$93=FALSE,O76,\"popraw pkt 30 w deklaracji\")),(IF(Deklaracja!B$93=TRUE,P76,\"uzupełnij pkt 30 w deklaracji\")))","v":"uzupełnij pkt 30 w deklaracji"},null,null,null,null,null,null,null,null,0,0]
[65,null,null,null,null,{"$f":"IF(Deklaracja!A$93=TRUE,(IF(Deklaracja!B$93=FALSE,O77,\"popraw pkt 30 w deklaracji\")),(IF(Deklaracja!B$93=TRUE,P77,\"uzupełnij pkt 30 w deklaracji\")))","v":"uzupełnij pkt 30 w deklaracji"},null,null,null,null,null,null,null,null,0,0]
[66,null,null,null,null,{"$f":"IF(Deklaracja!A$93=TRUE,(IF(Deklaracja!B$93=FALSE,O78,\"popraw pkt 30 w deklaracji\")),(IF(Deklaracja!B$93=TRUE,P78,\"uzupełnij pkt 30 w deklaracji\")))","v":"uzupełnij pkt 30 w deklaracji"},null,null,null,null,null,null,null,null,{"$f":"IFERROR(VLOOKUP(E78,H$25:J$29,2,TRUE),0)","v":0},{"$f":"IFERROR(VLOOKUP(E78,H$25:J$29,3,TRUE),0)","v":0}]
[67,null,null,null,null,{"$f":"IF(Deklaracja!A$93=TRUE,(IF(Deklaracja!B$93=FALSE,O79,\"popraw pkt 30 w deklaracji\")),(IF(Deklaracja!B$93=TRUE,P79,\"uzupełnij pkt 30 w deklaracji\")))","v":"uzupełnij pkt 30 w deklaracji"},null,null,null,null,null,null,null,null,0,0]
[68,null,null,null,null,{"$f":"IF(Deklaracja!A$93=TRUE,(IF(Deklaracja!B$93=FALSE,O80,\"popraw pkt 30 w deklaracji\")),(IF(Deklaracja!B$93=TRUE,P80,\"uzupełnij pkt 30 w deklaracji\")))","v":"uzupełnij pkt 30 w deklaracji"},null,null,null,null,null,null,null,null,0,0]
[69,null,null,null,null,{"$f":"IF(Deklaracja!A$93=TRUE,(IF(Deklaracja!B$93=FALSE,O81,\"popraw pkt 30 w deklaracji\")),(IF(Deklaracja!B$93=TRUE,P81,\"uzupełnij pkt 30 w deklaracji\")))","v":"uzupełnij pkt 30 w deklaracji"},null,null,null,null,null,null,null,null,0,0]
[70,null,null,null,null,{"$f":"IF(Deklaracja!A$93=TRUE,(IF(Deklaracja!B$93=FALSE,O82,\"popraw pkt 30 w deklaracji\")),(IF(Deklaracja!B$93=TRUE,P82,\"uzupełnij pkt 30 w deklaracji\")))","v":"uzupełnij pkt 30 w deklaracji"},null,null,null,null,null,null,null,null,0,0]
[71,null,null,null,null,{"$f":"IF(Deklaracja!A$93=TRUE,(IF(Deklaracja!B$93=FALSE,O83,\"popraw pkt 30 w deklaracji\")),(IF(Deklaracja!B$93=TRUE,P83,\"uzupełnij pkt 30 w deklaracji\")))","v":"uzupełnij pkt 30 w deklaracji"},null,null,null,null,null,null,null,null,0,0]
[72,null,null,null,null,{"$f":"IF(Deklaracja!A$93=TRUE,(IF(Deklaracja!B$93=FALSE,O84,\"popraw pkt 30 w deklaracji\")),(IF(Deklaracja!B$93=TRUE,P84,\"uzupełnij pkt 30 w deklaracji\")))","v":"uzupełnij pkt 30 w deklaracji"},null,null,null,null,null,null,null,null,0,0]
[73,null,null,null,null,{"$f":"IF(Deklaracja!A$93=TRUE,(IF(Deklaracja!B$93=FALSE,O85,\"popraw pkt 30 w deklaracji\")),(IF(Deklaracja!B$93=TRUE,P85,\"uzupełnij pkt 30 w deklaracji\")))","v":"uzupełnij pkt 30 w deklaracji"},null,null,null,null,null,null,null,null,0,0]
[74,null,null,null,null,{"$f":"IF(Deklaracja!A$93=TRUE,(IF(Deklaracja!B$93=FALSE,O86,\"popraw pkt 30 w deklaracji\")),(IF(Deklaracja!B$93=TRUE,P86,\"uzupełnij pkt 30 w deklaracji\")))","v":"uzupełnij pkt 30 w deklaracji"},null,null,null,null,null,null,null,null,0,0]
[75,null,null,null,null,{"$f":"IF(Deklaracja!A$93=TRUE,(IF(Deklaracja!B$93=FALSE,O87,\"popraw pkt 30 w deklaracji\")),(IF(Deklaracja!B$93=TRUE,P87,\"uzupełnij pkt 30 w deklaracji\")))","v":"uzupełnij pkt 30 w deklaracji"},null,null,null,null,null,null,null,null,0,0]
[76,null,null,null,null,{"$f":"IF(Deklaracja!A$93=TRUE,(IF(Deklaracja!B$93=FALSE,O88,\"popraw pkt 30 w deklaracji\")),(IF(Deklaracja!B$93=TRUE,P88,\"uzupełnij pkt 30 w deklaracji\")))","v":"uzupełnij pkt 30 w deklaracji"},null,null,null,null,null,null,null,null,0,0]
[77,null,null,null,null,{"$f":"IF(Deklaracja!A$93=TRUE,(IF(Deklaracja!B$93=FALSE,O89,\"popraw pkt 30 w deklaracji\")),(IF(Deklaracja!B$93=TRUE,P89,\"uzupełnij pkt 30 w deklaracji\")))","v":"uzupełnij pkt 30 w deklaracji"},null,null,null,null,null,null,null,null,0,0]
[78,null,null,null,null,{"$f":"IF(Deklaracja!A$93=TRUE,(IF(Deklaracja!B$93=FALSE,O90,\"popraw pkt 30 w deklaracji\")),(IF(Deklaracja!B$93=TRUE,P90,\"uzupełnij pkt 30 w deklaracji\")))","v":"uzupełnij pkt 30 w deklaracji"},null,null,null,null,null,null,null,null,0,0]
[79,null,null,null,null,{"$f":"IF(Deklaracja!A$93=TRUE,(IF(Deklaracja!B$93=FALSE,O91,\"popraw pkt 30 w deklaracji\")),(IF(Deklaracja!B$93=TRUE,P91,\"uzupełnij pkt 30 w deklaracji\")))","v":"uzupełnij pkt 30 w deklaracji"},null,null,null,null,null,null,null,null,0,0]
[80,null,null,null,null,{"$f":"IF(Deklaracja!A$93=TRUE,(IF(Deklaracja!B$93=FALSE,O92,\"popraw pkt 30 w deklaracji\")),(IF(Deklaracja!B$93=TRUE,P92,\"uzupełnij pkt 30 w deklaracji\")))","v":"uzupełnij pkt 30 w deklaracji"},null,null,null,null,null,null,null,null,0,0]
[81,null,null,null,null,{"$f":"IF(Deklaracja!A$93=TRUE,(IF(Deklaracja!B$93=FALSE,O93,\"popraw pkt 30 w deklaracji\")),(IF(Deklaracja!B$93=TRUE,P93,\"uzupełnij pkt 30 w deklaracji\")))","v":"uzupełnij pkt 30 w deklaracji"},null,null,null,null,null,null,null,null,0,0]
[82,null,null,null,null,{"$f":"IF(Deklaracja!A$93=TRUE,(IF(Deklaracja!B$93=FALSE,O94,\"popraw pkt 30 w deklaracji\")),(IF(Deklaracja!B$93=TRUE,P94,\"uzupełnij pkt 30 w deklaracji\")))","v":"uzupełnij pkt 30 w deklaracji"},null,null,null,null,null,null,null,null,0,0]
[83,null,null,null,null,{"$f":"IF(Deklaracja!A$93=TRUE,(IF(Deklaracja!B$93=FALSE,O95,\"popraw pkt 30 w deklaracji\")),(IF(Deklaracja!B$93=TRUE,P95,\"uzupełnij pkt 30 w deklaracji\")))","v":"uzupełnij pkt 30 w deklaracji"},null,null,null,null,null,null,null,null,0,0]
[84,null,null,null,null,{"$f":"IF(Deklaracja!A$93=TRUE,(IF(Deklaracja!B$93=FALSE,O96,\"popraw pkt 30 w deklaracji\")),(IF(Deklaracja!B$93=TRUE,P96,\"uzupełnij pkt 30 w deklaracji\")))","v":"uzupełnij pkt 30 w deklaracji"},null,null,null,null,null,null,null,null,0,0]
[85,null,null,null,null,{"$f":"IF(Deklaracja!A$93=TRUE,(IF(Deklaracja!B$93=FALSE,O97,\"popraw pkt 30 w deklaracji\")),(IF(Deklaracja!B$93=TRUE,P97,\"uzupełnij pkt 30 w deklaracji\")))","v":"uzupełnij pkt 30 w deklaracji"},null,null,null,null,null,null,null,null,0,0]
[86,null,null,null,null,{"$f":"IF(Deklaracja!A$93=TRUE,(IF(Deklaracja!B$93=FALSE,O98,\"popraw pkt 30 w deklaracji\")),(IF(Deklaracja!B$93=TRUE,P98,\"uzupełnij pkt 30 w deklaracji\")))","v":"uzupełnij pkt 30 w deklaracji"},null,null,null,null,null,null,null,null,0,0]
[87,null,null,null,null,{"$f":"IF(Deklaracja!A$93=TRUE,(IF(Deklaracja!B$93=FALSE,O99,\"popraw pkt 30 w deklaracji\")),(IF(Deklaracja!B$93=TRUE,P99,\"uzupełnij pkt 30 w deklaracji\")))","v":"uzupełnij pkt 30 w deklaracji"},null,null,null,null,null,null,null,null,0,0]
[88,null,null,null,null,{"$f":"IF(Deklaracja!A$93=TRUE,(IF(Deklaracja!B$93=FALSE,O100,\"popraw pkt 30 w deklaracji\")),(IF(Deklaracja!B$93=TRUE,P100,\"uzupełnij pkt 30 w deklaracji\")))","v":"uzupełnij pkt 30 w deklaracji"},null,null,null,null,null,null,null,null,0,0]
[89,null,null,null,null,{"$f":"IF(Deklaracja!A$93=TRUE,(IF(Deklaracja!B$93=FALSE,O101,\"popraw pkt 30 w deklaracji\")),(IF(Deklaracja!B$93=TRUE,P101,\"uzupełnij pkt 30 w deklaracji\")))","v":"uzupełnij pkt 30 w deklaracji"},null,null,null,null,null,null,null,null,0,0]
[90,null,null,null,null,{"$f":"IF(Deklaracja!A$93=TRUE,(IF(Deklaracja!B$93=FALSE,O102,\"popraw pkt 30 w deklaracji\")),(IF(Deklaracja!B$93=TRUE,P102,\"uzupełnij pkt 30 w deklaracji\")))","v":"uzupełnij pkt 30 w deklaracji"},null,null,null,null,null,null,null,null,0,0]
[91,null,null,null,null,{"$f":"IF(Deklaracja!A$93=TRUE,(IF(Deklaracja!B$93=FALSE,O103,\"popraw pkt 30 w deklaracji\")),(IF(Deklaracja!B$93=TRUE,P103,\"uzupełnij pkt 30 w deklaracji\")))","v":"uzupełnij pkt 30 w deklaracji"},null,null,null,null,null,null,null,null,0,0]
[92,null,null,null,null,{"$f":"IF(Deklaracja!A$93=TRUE,(IF(Deklaracja!B$93=FALSE,O104,\"popraw pkt 30 w deklaracji\")),(IF(Deklaracja!B$93=TRUE,P104,\"uzupełnij pkt 30 w deklaracji\")))","v":"uzupełnij pkt 30 w deklaracji"},null,null,null,null,null,null,null,null,0,0]
[93,null,null,null,null,{"$f":"IF(Deklaracja!A$93=TRUE,(IF(Deklaracja!B$93=FALSE,O105,\"popraw pkt 30 w deklaracji\")),(IF(Deklaracja!B$93=TRUE,P105,\"uzupełnij pkt 30 w deklaracji\")))","v":"uzupełnij pkt 30 w deklaracji"},null,null,null,null,null,null,null,null,0,0]
[94,null,null,null,null,{"$f":"IF(Deklaracja!A$93=TRUE,(IF(Deklaracja!B$93=FALSE,O106,\"popraw pkt 30 w deklaracji\")),(IF(Deklaracja!B$93=TRUE,P106,\"uzupełnij pkt 30 w deklaracji\")))","v":"uzupełnij pkt 30 w deklaracji"},null,null,null,null,null,null,null,null,0,0]
[95,null,null,null,null,{"$f":"IF(Deklaracja!A$93=TRUE,(IF(Deklaracja!B$93=FALSE,O107,\"popraw pkt 30 w deklaracji\")),(IF(Deklaracja!B$93=TRUE,P107,\"uzupełnij pkt 30 w deklaracji\")))","v":"uzupełnij pkt 30 w deklaracji"},null,null,null,null,null,null,null,null,0,0]
[96,null,null,null,null,{"$f":"IF(Deklaracja!A$93=TRUE,(IF(Deklaracja!B$93=FALSE,O108,\"popraw pkt 30 w deklaracji\")),(IF(Deklaracja!B$93=TRUE,P108,\"uzupełnij pkt 30 w deklaracji\")))","v":"uzupełnij pkt 30 w deklaracji"},null,null,null,null,null,null,null,null,0,0]
[97,null,null,null,null,{"$f":"IF(Deklaracja!A$93=TRUE,(IF(Deklaracja!B$93=FALSE,O109,\"popraw pkt 30 w deklaracji\")),(IF(Deklaracja!B$93=TRUE,P109,\"uzupełnij pkt 30 w deklaracji\")))","v":"uzupełnij pkt 30 w deklaracji"},null,null,null,null,null,null,null,null,0,0]
[98,null,null,null,null,{"$f":"IF(Deklaracja!A$93=TRUE,(IF(Deklaracja!B$93=FALSE,O110,\"popraw pkt 30 w deklaracji\")),(IF(Deklaracja!B$93=TRUE,P110,\"uzupełnij pkt 30 w deklaracji\")))","v":"uzupełnij pkt 30 w deklaracji"},null,null,null,null,null,null,null,null,0,0]
[99,null,null,null,null,{"$f":"IF(Deklaracja!A$93=TRUE,(IF(Deklaracja!B$93=FALSE,O111,\"popraw pkt 30 w deklaracji\")),(IF(Deklaracja!B$93=TRUE,P111,\"uzupełnij pkt 30 w deklaracji\")))","v":"uzupełnij pkt 30 w deklaracji"},null,null,null,null,null,null,null,null,0,0]
[100,null,null,null,null,{"$f":"IF(Deklaracja!A$93=TRUE,(IF(Deklaracja!B$93=FALSE,O112,\"popraw pkt 30 w deklaracji\")),(IF(Deklaracja!B$93=TRUE,P112,\"uzupełnij pkt 30 w deklaracji\")))","v":"uzupełnij pkt 30 w deklaracji"},null,null,null,null,null,null,null,null,0,0]
[101,null,null,null,null,{"$f":"IF(Deklaracja!A$93=TRUE,(IF(Deklaracja!B$93=FALSE,O113,\"popraw pkt 30 w deklaracji\")),(IF(Deklaracja!B$93=TRUE,P113,\"uzupełnij pkt 30 w deklaracji\")))","v":"uzupełnij pkt 30 w deklaracji"},null,null,null,null,null,null,null,null,0,0]
[102,null,null,null,null,{"$f":"IF(Deklaracja!A$93=TRUE,(IF(Deklaracja!B$93=FALSE,O114,\"popraw pkt 30 w deklaracji\")),(IF(Deklaracja!B$93=TRUE,P114,\"uzupełnij pkt 30 w deklaracji\")))","v":"uzupełnij pkt 30 w deklaracji"},null,null,null,null,null,null,null,null,0,0]
[103,null,null,null,null,{"$f":"IF(Deklaracja!A$93=TRUE,(IF(Deklaracja!B$93=FALSE,O115,\"popraw pkt 30 w deklaracji\")),(IF(Deklaracja!B$93=TRUE,P115,\"uzupełnij pkt 30 w deklaracji\")))","v":"uzupełnij pkt 30 w deklaracji"},null,null,null,null,null,null,null,null,0,0]
[104,null,null,null,null,{"$f":"IF(Deklaracja!A$93=TRUE,(IF(Deklaracja!B$93=FALSE,O116,\"popraw pkt 30 w deklaracji\")),(IF(Deklaracja!B$93=TRUE,P116,\"uzupełnij pkt 30 w deklaracji\")))","v":"uzupełnij pkt 30 w deklaracji"},null,null,null,null,null,null,null,null,0,0]
[105,null,null,null,null,{"$f":"IF(Deklaracja!A$93=TRUE,(IF(Deklaracja!B$93=FALSE,O117,\"popraw pkt 30 w deklaracji\")),(IF(Deklaracja!B$93=TRUE,P117,\"uzupełnij pkt 30 w deklaracji\")))","v":"uzupełnij pkt 30 w deklaracji"},null,null,null,null,null,null,null,null,0,0]
[106,null,null,null,null,{"$f":"IF(Deklaracja!A$93=TRUE,(IF(Deklaracja!B$93=FALSE,O118,\"popraw pkt 30 w deklaracji\")),(IF(Deklaracja!B$93=TRUE,P118,\"uzupełnij pkt 30 w deklaracji\")))","v":"uzupełnij pkt 30 w deklaracji"},null,null,null,null,null,null,null,null,0,0]
[107,null,null,null,null,{"$f":"IF(Deklaracja!A$93=TRUE,(IF(Deklaracja!B$93=FALSE,O119,\"popraw pkt 30 w deklaracji\")),(IF(Deklaracja!B$93=TRUE,P119,\"uzupełnij pkt 30 w deklaracji\")))","v":"uzupełnij pkt 30 w deklaracji"},null,null,null,null,null,null,null,null,0,0]
[108,null,null,null,null,{"$f":"IF(Deklaracja!A$93=TRUE,(IF(Deklaracja!B$93=FALSE,O120,\"popraw pkt 30 w deklaracji\")),(IF(Deklaracja!B$93=TRUE,P120,\"uzupełnij pkt 30 w deklaracji\")))","v":"uzupełnij pkt 30 w deklaracji"},null,null,null,null,null,null,null,null,0,0]
[109,null,null,null,null,{"$f":"IF(Deklaracja!A$93=TRUE,(IF(Deklaracja!B$93=FALSE,O121,\"popraw pkt 30 w deklaracji\")),(IF(Deklaracja!B$93=TRUE,P121,\"uzupełnij pkt 30 w deklaracji\")))","v":"uzupełnij pkt 30 w deklaracji"},null,null,null,null,null,null,null,null,0,0]
[110,null,null,null,null,{"$f":"IF(Deklaracja!A$93=TRUE,(IF(Deklaracja!B$93=FALSE,O122,\"popraw pkt 30 w deklaracji\")),(IF(Deklaracja!B$93=TRUE,P122,\"uzupełnij pkt 30 w deklaracji\")))","v":"uzupełnij pkt 30 w deklaracji"},null,null,null,null,null,null,null,null,0,0]
[111,null,null,null,null,{"$f":"IF(Deklaracja!A$93=TRUE,(IF(Deklaracja!B$93=FALSE,O123,\"popraw pkt 30 w deklaracji\")),(IF(Deklaracja!B$93=TRUE,P123,\"uzupełnij pkt 30 w deklaracji\")))","v":"uzupełnij pkt 30 w deklaracji"},null,null,null,null,null,null,null,null,0,0]
[112,null,null,null,null,{"$f":"IF(Deklaracja!A$93=TRUE,(IF(Deklaracja!B$93=FALSE,O124,\"popraw pkt 30 w deklaracji\")),(IF(Deklaracja!B$93=TRUE,P124,\"uzupełnij pkt 30 w deklaracji\")))","v":"uzupełnij pkt 30 w deklaracji"},null,null,null,null,null,null,null,null,0,0]
[113,null,null,null,null,{"$f":"IF(Deklaracja!A$93=TRUE,(IF(Deklaracja!B$93=FALSE,O125,\"popraw pkt 30 w deklaracji\")),(IF(Deklaracja!B$93=TRUE,P125,\"uzupełnij pkt 30 w deklaracji\")))","v":"uzupełnij pkt 30 w deklaracji"},null,null,null,null,null,null,null,null,0,0]
[114,null,null,null,null,{"$f":"IF(Deklaracja!A$93=TRUE,(IF(Deklaracja!B$93=FALSE,O126,\"popraw pkt 30 w deklaracji\")),(IF(Deklaracja!B$93=TRUE,P126,\"uzupełnij pkt 30 w deklaracji\")))","v":"uzupełnij pkt 30 w deklaracji"},null,null,null,null,null,null,null,null,0,0]
[115,null,null,null,null,{"$f":"IF(Deklaracja!A$93=TRUE,(IF(Deklaracja!B$93=FALSE,O127,\"popraw pkt 30 w deklaracji\")),(IF(Deklaracja!B$93=TRUE,P127,\"uzupełnij pkt 30 w deklaracji\")))","v":"uzupełnij pkt 30 w deklaracji"},null,null,null,null,null,null,null,null,0,0]
[116,null,null,null,null,{"$f":"IF(Deklaracja!A$93=TRUE,(IF(Deklaracja!B$93=FALSE,O128,\"popraw pkt 30 w deklaracji\")),(IF(Deklaracja!B$93=TRUE,P128,\"uzupełnij pkt 30 w deklaracji\")))","v":"uzupełnij pkt 30 w deklaracji"},null,null,null,null,null,null,null,null,0,0]
[117,null,null,null,null,{"$f":"IF(Deklaracja!A$93=TRUE,(IF(Deklaracja!B$93=FALSE,O129,\"popraw pkt 30 w deklaracji\")),(IF(Deklaracja!B$93=TRUE,P129,\"uzupełnij pkt 30 w deklaracji\")))","v":"uzupełnij pkt 30 w deklaracji"},null,null,null,null,null,null,null,null,0,0]
[118,null,null,null,null,{"$f":"IF(Deklaracja!A$93=TRUE,(IF(Deklaracja!B$93=FALSE,O130,\"popraw pkt 30 w deklaracji\")),(IF(Deklaracja!B$93=TRUE,P130,\"uzupełnij pkt 30 w deklaracji\")))","v":"uzupełnij pkt 30 w deklaracji"},null,null,null,null,null,null,null,null,0,0]
[119,null,null,null,null,{"$f":"IF(Deklaracja!A$93=TRUE,(IF(Deklaracja!B$93=FALSE,O131,\"popraw pkt 30 w deklaracji\")),(IF(Deklaracja!B$93=TRUE,P131,\"uzupełnij pkt 30 w deklaracji\")))","v":"uzupełnij pkt 30 w deklaracji"},null,null,null,null,null,null,null,null,0,0]
[120,null,null,null,null,{"$f":"IF(Deklaracja!A$93=TRUE,(IF(Deklaracja!B$93=FALSE,O132,\"popraw pkt 30 w deklaracji\")),(IF(Deklaracja!B$93=TRUE,P132,\"uzupełnij pkt 30 w deklaracji\")))","v":"uzupełnij pkt 30 w deklaracji"},null,null,null,null,null,null,null,null,0,0]
[121,null,null,null,null,{"$f":"IF(Deklaracja!A$93=TRUE,(IF(Deklaracja!B$93=FALSE,O133,\"popraw pkt 30 w deklaracji\")),(IF(Deklaracja!B$93=TRUE,P133,\"uzupełnij pkt 30 w deklaracji\")))","v":"uzupełnij pkt 30 w deklaracji"},null,null,null,null,null,null,null,null,0,0]
[122,null,null,null,null,{"$f":"IF(Deklaracja!A$93=TRUE,(IF(Deklaracja!B$93=FALSE,O134,\"popraw pkt 30 w deklaracji\")),(IF(Deklaracja!B$93=TRUE,P134,\"uzupełnij pkt 30 w deklaracji\")))","v":"uzupełnij pkt 30 w deklaracji"},null,null,null,null,null,null,null,null,0,0]
[123,null,null,null,null,{"$f":"IF(Deklaracja!A$93=TRUE,(IF(Deklaracja!B$93=FALSE,O135,\"popraw pkt 30 w deklaracji\")),(IF(Deklaracja!B$93=TRUE,P135,\"uzupełnij pkt 30 w deklaracji\")))","v":"uzupełnij pkt 30 w deklaracji"},null,null,null,null,null,null,null,null,0,0]
[124,null,null,null,null,{"$f":"IF(Deklaracja!A$93=TRUE,(IF(Deklaracja!B$93=FALSE,O136,\"popraw pkt 30 w deklaracji\")),(IF(Deklaracja!B$93=TRUE,P136,\"uzupełnij pkt 30 w deklaracji\")))","v":"uzupełnij pkt 30 w deklaracji"},null,null,null,null,null,null,null,null,0,0]
[125,null,null,null,null,{"$f":"IF(Deklaracja!A$93=TRUE,(IF(Deklaracja!B$93=FALSE,O137,\"popraw pkt 30 w deklaracji\")),(IF(Deklaracja!B$93=TRUE,P137,\"uzupełnij pkt 30 w deklaracji\")))","v":"uzupełnij pkt 30 w deklaracji"},null,null,null,null,null,null,null,null,0,0]
[126,null,null,null,null,{"$f":"IF(Deklaracja!A$93=TRUE,(IF(Deklaracja!B$93=FALSE,O138,\"popraw pkt 30 w deklaracji\")),(IF(Deklaracja!B$93=TRUE,P138,\"uzupełnij pkt 30 w deklaracji\")))","v":"uzupełnij pkt 30 w deklaracji"},null,null,null,null,null,null,null,null,0,0]
[127,null,null,null,null,{"$f":"IF(Deklaracja!A$93=TRUE,(IF(Deklaracja!B$93=FALSE,O139,\"popraw pkt 30 w deklaracji\")),(IF(Deklaracja!B$93=TRUE,P139,\"uzupełnij pkt 30 w deklaracji\")))","v":"uzupełnij pkt 30 w deklaracji"},null,null,null,null,null,null,null,null,0,0]
[128,null,null,null,null,{"$f":"IF(Deklaracja!A$93=TRUE,(IF(Deklaracja!B$93=FALSE,O140,\"popraw pkt 30 w deklaracji\")),(IF(Deklaracja!B$93=TRUE,P140,\"uzupełnij pkt 30 w deklaracji\")))","v":"uzupełnij pkt 30 w deklaracji"},null,null,null,null,null,null,null,null,0,0]
[129,null,null,null,null,{"$f":"IF(Deklaracja!A$93=TRUE,(IF(Deklaracja!B$93=FALSE,O141,\"popraw pkt 30 w deklaracji\")),(IF(Deklaracja!B$93=TRUE,P141,\"uzupełnij pkt 30 w deklaracji\")))","v":"uzupełnij pkt 30 w deklaracji"},null,null,null,null,null,null,null,null,0,0]
[130,null,null,null,null,{"$f":"IF(Deklaracja!A$93=TRUE,(IF(Deklaracja!B$93=FALSE,O142,\"popraw pkt 30 w deklaracji\")),(IF(Deklaracja!B$93=TRUE,P142,\"uzupełnij pkt 30 w deklaracji\")))","v":"uzupełnij pkt 30 w deklaracji"},null,null,null,null,null,null,null,null,{"$f":"IFERROR(VLOOKUP(E142,H$25:J$29,2,TRUE),0)","v":0},{"$f":"IFERROR(VLOOKUP(E142,H$25:J$29,3,TRUE),0)","v":0}]
[131,null,null,null,null,{"$f":"IF(Deklaracja!A$93=TRUE,(IF(Deklaracja!B$93=FALSE,O143,\"popraw pkt 30 w deklaracji\")),(IF(Deklaracja!B$93=TRUE,P143,\"uzupełnij pkt 30 w deklaracji\")))","v":"uzupełnij pkt 30 w deklaracji"},null,null,null,null,null,null,null,null,0,0]
[132,null,null,null,null,{"$f":"IF(Deklaracja!A$93=TRUE,(IF(Deklaracja!B$93=FALSE,O144,\"popraw pkt 30 w deklaracji\")),(IF(Deklaracja!B$93=TRUE,P144,\"uzupełnij pkt 30 w deklaracji\")))","v":"uzupełnij pkt 30 w deklaracji"},null,null,null,null,null,null,null,null,0,0]
[133,null,null,null,null,{"$f":"IF(Deklaracja!A$93=TRUE,(IF(Deklaracja!B$93=FALSE,O145,\"popraw pkt 30 w deklaracji\")),(IF(Deklaracja!B$93=TRUE,P145,\"uzupełnij pkt 30 w deklaracji\")))","v":"uzupełnij pkt 30 w deklaracji"},null,null,null,null,null,null,null,null,0,0]
[134,null,null,null,null,{"$f":"IF(Deklaracja!A$93=TRUE,(IF(Deklaracja!B$93=FALSE,O146,\"popraw pkt 30 w deklaracji\")),(IF(Deklaracja!B$93=TRUE,P146,\"uzupełnij pkt 30 w deklaracji\")))","v":"uzupełnij pkt 30 w deklaracji"},null,null,null,null,null,null,null,null,0,0]
[135,null,null,null,null,{"$f":"IF(Deklaracja!A$93=TRUE,(IF(Deklaracja!B$93=FALSE,O147,\"popraw pkt 30 w deklaracji\")),(IF(Deklaracja!B$93=TRUE,P147,\"uzupełnij pkt 30 w deklaracji\")))","v":"uzupełnij pkt 30 w deklaracji"},null,null,null,null,null,null,null,null,0,0]
[136,null,null,null,null,{"$f":"IF(Deklaracja!A$93=TRUE,(IF(Deklaracja!B$93=FALSE,O148,\"popraw pkt 30 w deklaracji\")),(IF(Deklaracja!B$93=TRUE,P148,\"uzupełnij pkt 30 w deklaracji\")))","v":"uzupełnij pkt 30 w deklaracji"},null,null,null,null,null,null,null,null,0,0]
[137,null,null,null,null,{"$f":"IF(Deklaracja!A$93=TRUE,(IF(Deklaracja!B$93=FALSE,O149,\"popraw pkt 30 w deklaracji\")),(IF(Deklaracja!B$93=TRUE,P149,\"uzupełnij pkt 30 w deklaracji\")))","v":"uzupełnij pkt 30 w deklaracji"},null,null,null,null,null,null,null,null,0,0]
[138,null,null,null,null,{"$f":"IF(Deklaracja!A$93=TRUE,(IF(Deklaracja!B$93=FALSE,O150,\"popraw pkt 30 w deklaracji\")),(IF(Deklaracja!B$93=TRUE,P150,\"uzupełnij pkt 30 w deklaracji\")))","v":"uzupełnij pkt 30 w deklaracji"},null,null,null,null,null,null,null,null,0,0]
[139,null,null,null,null,{"$f":"IF(Deklaracja!A$93=TRUE,(IF(Deklaracja!B$93=FALSE,O151,\"popraw pkt 30 w deklaracji\")),(IF(Deklaracja!B$93=TRUE,P151,\"uzupełnij pkt 30 w deklaracji\")))","v":"uzupełnij pkt 30 w deklaracji"},null,null,null,null,null,null,null,null,0,0]
[140,null,null,null,null,{"$f":"IF(Deklaracja!A$93=TRUE,(IF(Deklaracja!B$93=FALSE,O152,\"popraw pkt 30 w deklaracji\")),(IF(Deklaracja!B$93=TRUE,P152,\"uzupełnij pkt 30 w deklaracji\")))","v":"uzupełnij pkt 30 w deklaracji"},null,null,null,null,null,null,null,null,0,0]
[141,null,null,null,null,{"$f":"IF(Deklaracja!A$93=TRUE,(IF(Deklaracja!B$93=FALSE,O153,\"popraw pkt 30 w deklaracji\")),(IF(Deklaracja!B$93=TRUE,P153,\"uzupełnij pkt 30 w deklaracji\")))","v":"uzupełnij pkt 30 w deklaracji"},null,null,null,null,null,null,null,null,0,0]
[142,null,null,null,null,{"$f":"IF(Deklaracja!A$93=TRUE,(IF(Deklaracja!B$93=FALSE,O154,\"popraw pkt 30 w deklaracji\")),(IF(Deklaracja!B$93=TRUE,P154,\"uzupełnij pkt 30 w deklaracji\")))","v":"uzupełnij pkt 30 w deklaracji"},null,null,null,null,null,null,null,null,0,0]
[143,null,null,null,null,{"$f":"IF(Deklaracja!A$93=TRUE,(IF(Deklaracja!B$93=FALSE,O155,\"popraw pkt 30 w deklaracji\")),(IF(Deklaracja!B$93=TRUE,P155,\"uzupełnij pkt 30 w deklaracji\")))","v":"uzupełnij pkt 30 w deklaracji"},null,null,null,null,null,null,null,null,0,0]
[144,null,null,null,null,{"$f":"IF(Deklaracja!A$93=TRUE,(IF(Deklaracja!B$93=FALSE,O156,\"popraw pkt 30 w deklaracji\")),(IF(Deklaracja!B$93=TRUE,P156,\"uzupełnij pkt 30 w deklaracji\")))","v":"uzupełnij pkt 30 w deklaracji"},null,null,null,null,null,null,null,null,0,0]
[145,null,null,null,null,{"$f":"IF(Deklaracja!A$93=TRUE,(IF(Deklaracja!B$93=FALSE,O157,\"popraw pkt 30 w deklaracji\")),(IF(Deklaracja!B$93=TRUE,P157,\"uzupełnij pkt 30 w deklaracji\")))","v":"uzupełnij pkt 30 w deklaracji"},null,null,null,null,null,null,null,null,0,0]
[146,null,null,null,null,{"$f":"IF(Deklaracja!A$93=TRUE,(IF(Deklaracja!B$93=FALSE,O158,\"popraw pkt 30 w deklaracji\")),(IF(Deklaracja!B$93=TRUE,P158,\"uzupełnij pkt 30 w deklaracji\")))","v":"uzupełnij pkt 30 w deklaracji"},null,null,null,null,null,null,null,null,0,0]
[147,null,null,null,null,{"$f":"IF(Deklaracja!A$93=TRUE,(IF(Deklaracja!B$93=FALSE,O159,\"popraw pkt 30 w deklaracji\")),(IF(Deklaracja!B$93=TRUE,P159,\"uzupełnij pkt 30 w deklaracji\")))","v":"uzupełnij pkt 30 w deklaracji"},null,null,null,null,null,null,null,null,0,0]
[148,null,null,null,null,{"$f":"IF(Deklaracja!A$93=TRUE,(IF(Deklaracja!B$93=FALSE,O160,\"popraw pkt 30 w deklaracji\")),(IF(Deklaracja!B$93=TRUE,P160,\"uzupełnij pkt 30 w deklaracji\")))","v":"uzupełnij pkt 30 w deklaracji"},null,null,null,null,null,null,null,null,0,0]
[149,null,null,null,null,{"$f":"IF(Deklaracja!A$93=TRUE,(IF(Deklaracja!B$93=FALSE,O161,\"popraw pkt 30 w deklaracji\")),(IF(Deklaracja!B$93=TRUE,P161,\"uzupełnij pkt 30 w deklaracji\")))","v":"uzupełnij pkt 30 w deklaracji"},null,null,null,null,null,null,null,null,0,0]
[150,null,null,null,null,{"$f":"IF(Deklaracja!A$93=TRUE,(IF(Deklaracja!B$93=FALSE,O162,\"popraw pkt 30 w deklaracji\")),(IF(Deklaracja!B$93=TRUE,P162,\"uzupełnij pkt 30 w deklaracji\")))","v":"uzupełnij pkt 30 w deklaracji"},null,null,null,null,null,null,null,null,0,0]
[151,null,null,null,null,{"$f":"IF(Deklaracja!A$93=TRUE,(IF(Deklaracja!B$93=FALSE,O163,\"popraw pkt 30 w deklaracji\")),(IF(Deklaracja!B$93=TRUE,P163,\"uzupełnij pkt 30 w deklaracji\")))","v":"uzupełnij pkt 30 w deklaracji"},null,null,null,null,null,null,null,null,0,0]
[152,null,null,null,null,{"$f":"IF(Deklaracja!A$93=TRUE,(IF(Deklaracja!B$93=FALSE,O164,\"popraw pkt 30 w deklaracji\")),(IF(Deklaracja!B$93=TRUE,P164,\"uzupełnij pkt 30 w deklaracji\")))","v":"uzupełnij pkt 30 w deklaracji"},null,null,null,null,null,null,null,null,0,0]
[153,null,null,null,null,{"$f":"IF(Deklaracja!A$93=TRUE,(IF(Deklaracja!B$93=FALSE,O165,\"popraw pkt 30 w deklaracji\")),(IF(Deklaracja!B$93=TRUE,P165,\"uzupełnij pkt 30 w deklaracji\")))","v":"uzupełnij pkt 30 w deklaracji"},null,null,null,null,null,null,null,null,0,0]
[154,null,null,null,null,{"$f":"IF(Deklaracja!A$93=TRUE,(IF(Deklaracja!B$93=FALSE,O166,\"popraw pkt 30 w deklaracji\")),(IF(Deklaracja!B$93=TRUE,P166,\"uzupełnij pkt 30 w deklaracji\")))","v":"uzupełnij pkt 30 w deklaracji"},null,null,null,null,null,null,null,null,0,0]
[155,null,null,null,null,{"$f":"IF(Deklaracja!A$93=TRUE,(IF(Deklaracja!B$93=FALSE,O167,\"popraw pkt 30 w deklaracji\")),(IF(Deklaracja!B$93=TRUE,P167,\"uzupełnij pkt 30 w deklaracji\")))","v":"uzupełnij pkt 30 w deklaracji"},null,null,null,null,null,null,null,null,0,0]
[156,null,null,null,null,{"$f":"IF(Deklaracja!A$93=TRUE,(IF(Deklaracja!B$93=FALSE,O168,\"popraw pkt 30 w deklaracji\")),(IF(Deklaracja!B$93=TRUE,P168,\"uzupełnij pkt 30 w deklaracji\")))","v":"uzupełnij pkt 30 w deklaracji"},null,null,null,null,null,null,null,null,0,0]
[157,null,null,null,null,{"$f":"IF(Deklaracja!A$93=TRUE,(IF(Deklaracja!B$93=FALSE,O169,\"popraw pkt 30 w deklaracji\")),(IF(Deklaracja!B$93=TRUE,P169,\"uzupełnij pkt 30 w deklaracji\")))","v":"uzupełnij pkt 30 w deklaracji"},null,null,null,null,null,null,null,null,0,0]
[158,null,null,null,null,{"$f":"IF(Deklaracja!A$93=TRUE,(IF(Deklaracja!B$93=FALSE,O170,\"popraw pkt 30 w deklaracji\")),(IF(Deklaracja!B$93=TRUE,P170,\"uzupełnij pkt 30 w deklaracji\")))","v":"uzupełnij pkt 30 w deklaracji"},null,null,null,null,null,null,null,null,0,0]
[159,null,null,null,null,{"$f":"IF(Deklaracja!A$93=TRUE,(IF(Deklaracja!B$93=FALSE,O171,\"popraw pkt 30 w deklaracji\")),(IF(Deklaracja!B$93=TRUE,P171,\"uzupełnij pkt 30 w deklaracji\")))","v":"uzupełnij pkt 30 w deklaracji"},null,null,null,null,null,null,null,null,0,0]
[160,null,null,null,null,{"$f":"IF(Deklaracja!A$93=TRUE,(IF(Deklaracja!B$93=FALSE,O172,\"popraw pkt 30 w deklaracji\")),(IF(Deklaracja!B$93=TRUE,P172,\"uzupełnij pkt 30 w deklaracji\")))","v":"uzupełnij pkt 30 w deklaracji"},null,null,null,null,null,null,null,null,0,0]
[161,null,null,null,null,{"$f":"IF(Deklaracja!A$93=TRUE,(IF(Deklaracja!B$93=FALSE,O173,\"popraw pkt 30 w deklaracji\")),(IF(Deklaracja!B$93=TRUE,P173,\"uzupełnij pkt 30 w deklaracji\")))","v":"uzupełnij pkt 30 w deklaracji"},null,null,null,null,null,null,null,null,0,0]
[162,null,null,null,null,{"$f":"IF(Deklaracja!A$93=TRUE,(IF(Deklaracja!B$93=FALSE,O174,\"popraw pkt 30 w deklaracji\")),(IF(Deklaracja!B$93=TRUE,P174,\"uzupełnij pkt 30 w deklaracji\")))","v":"uzupełnij pkt 30 w deklaracji"},null,null,null,null,null,null,null,null,0,0]
[163,null,null,null,null,{"$f":"IF(Deklaracja!A$93=TRUE,(IF(Deklaracja!B$93=FALSE,O175,\"popraw pkt 30 w deklaracji\")),(IF(Deklaracja!B$93=TRUE,P175,\"uzupełnij pkt 30 w deklaracji\")))","v":"uzupełnij pkt 30 w deklaracji"},null,null,null,null,null,null,null,null,0,0]
[164,null,null,null,null,{"$f":"IF(Deklaracja!A$93=TRUE,(IF(Deklaracja!B$93=FALSE,O176,\"popraw pkt 30 w deklaracji\")),(IF(Deklaracja!B$93=TRUE,P176,\"uzupełnij pkt 30 w deklaracji\")))","v":"uzupełnij pkt 30 w deklaracji"},null,null,null,null,null,null,null,null,0,0]
[165,null,null,null,null,{"$f":"IF(Deklaracja!A$93=TRUE,(IF(Deklaracja!B$93=FALSE,O177,\"popraw pkt 30 w deklaracji\")),(IF(Deklaracja!B$93=TRUE,P177,\"uzupełnij pkt 30 w deklaracji\")))","v":"uzupełnij pkt 30 w deklaracji"},null,null,null,null,null,null,null,null,0,0]
[null,null,null,null,"Suma:",{"$f":"SUM(F13:F177)","v":0}]

{"sheet":"Objaśnienia","index":2,"n_rows":0,"n_cols":0,"rows_kept":0,"cut":false,"hidden":false,"merged":[]}

{"sheet":"Baza ulic","index":3,"n_rows":137,"n_cols":1,"rows_kept":137,"cut":false,"hidden":false,"merged":[]}
["Inna…"]
["ul. Aleja Marszałka Józefa Piłsudskiego"]
["ul. Aleja Tysiąclecia"]
["ul. Aleja Zdobywców Wału Pomorskiego"]
["ul. Armii Ludowej"]
["al. Aten Wałeckich"]
["ul. Bankowa"]
["ul. Batalionów Chłopskich"]
["ul. Bracka"]
["ul. Brylantowa"]
["ul. Brzozowa"]
["ul. Budowlanych"]
["ul. Bukowa"]
["ul. Bursztynowa"]
["ul. Bydgoska"]
["ul. Cechowa"]
["ul. Chełmińska"]
["ul. Chłodna"]
["ul. Chmielna"]
["ul. F. Chopina"]
["ul. Chrząstkowo"]
["ul. Ciasna"]
["ul. J. Dąbrowskiego"]
["ul. Dębowa"]
["ul. ks. Bolesława Domańskiego"]
["ul. Drahimska"]
["ul. Dworcowa"]
["ul. Gdańska"]
["ul. Harcerska"]
["ul. Królowej Jadwigi"]
["ul. Jasna"]
["ul. Kaszubska"]
["ul. Kilińskiego"]
["ul. Kilińszczaków"]
["ul. Klonowa"]
["ul. Kolejowa"]
["ul. Kołobrzeska"]
["ul. M. Konopnickiej"]
["ul. Kościelna"]
["ul. T. Kościuszki"]
["ul. Kościuszkowców"]
["ul. Krótka"]
["ul. Krucza"]
["ul. Kujawska"]
["ul. Janusza Kusocińskiego"]
["ul. Kwiatowa"]
["ul. Leśna"]
["ul. Lipowa"]
["ul. 12 Lutego"]
["ul. prof. Antoniego Łowińskiego"]
["ul. 3 Maja"]
["ul. 1 Maja"]
["ul. Mazowiecka"]
["ul. A. Mickiewicza"]
["ul. Miła"]
["ul. Młynarska"]
["ul. Morska"]
["ul. Morzyce"]
["ul. Nadjeziorna"]
["ul. Nowomiejska"]
["ul. Obrońców Westerplatte"]
["ul. Ogniowa"]
["ul. Ogrodowa"]
["ul. Okrężna"]
["ul. gen. Leopolda Okulickiego"]
["ul. Orla"]
["os. Osiedle Dolne Miasto"]
["os. Osiedle Moje Marzenie"]
["os. Osiedle Nowe Morzyce"]
["os. Osiedle Olimpijskie"]
["os. Osiedle Piastowskie"]
["os. Osiedle Stefana Batorego"]
["os. Osiedle Zacisze"]
["ul. Ignacego J. Paderewskiego"]
["ul. Papieża Jana XXIII"]
["ul. Parkowa"]
["ul. Partyzantów"]
["ul. Piaskowa"]
["ul. Piastowska"]
["pl. Plac Papieża Jana Pawła II"]
["pl. Plac Polski"]
["pl. Plac Wolności"]
["pl. Plac Zesłańców Sybiru"]
["ul. Emilii Plater"]
["ul. Pocztowa"]
["ul. Podgórna"]
["ul. Podleśna"]
["ul. Połczyńska"]
["ul. Południowa"]
["ul. Pomorska"]
["ul. Poniatowskiego"]
["ul. Poznańska"]
["ul. Pożarna"]
["ul. Północna"]
["ul. Półwiejska"]
["ul. Przedmiejska"]
["ul. Macieja Rataja"]
["ul. Robotnicza"]
["ul. Rzeczna"]
["ul. Rzemieślnicza"]
["ul. Sądowa"]
["ul. H. Sienkiewicza"]
["ul. Słoneczna"]
["ul. Smolna"]
["ul. Sosnowa"]
["ul. Spokojna"]
["ul. Sportowa"]
["ul. S. Staszica"]
["ul. Strefowa"]
["ul. Szczęśliwa"]
["ul. Szkolna"]
["ul. Szmaragdowa"]
["ul. Szpitalna"]
["ul. Tęczowa"]
["ul. Topolowa"]
["ul. Towarowa"]
["ul. Urocza"]
["ul. Warzywna"]
["ul. Wąska"]
["ul. Werneńska"]
["ul. Wiejska"]
["ul. Wierzbowa"]
["ul. Wilcza"]
["ul. Wileńska"]
["ul. Wincentego Witosa"]
["ul. Wojska Polskiego"]
["ul. Wronia"]
["ul. Wybudowanie"]
["ul. Zamiejska"]
["ul. Zamkowa"]
["ul. Zaułek Chełmiński"]
["ul. Zbożowa"]
["ul. Zielna"]
["ul. Złota"]
["ul. Żabia"]
["ul. S. Żeromskiego"]
["ul. Żyzna"]